bitfinex-derivatives/quotes_SOLF0:USTF0_20250413
["timestamp","ask_amount","ask_price","bid_price","bid_amount"]
[1744547916526,0.0521449,129.73,129.7,0.05587281]
[1744547917423,7.7114,129.72,129.7,0.05587281]
[1744547917629,0.0521449,129.73,129.7,0.05587281]
[1744547918728,7.711,129.72,129.7,0.05587281]
[1744547919031,30.54,129.71,129.7,0.05587281]
[1744547919430,38.2516,129.71,129.7,0.05587281]
[1744547921334,30.54,129.71,129.7,0.05587281]
[1744547922138,38.2516,129.71,129.7,0.05587281]
[1744547924138,30.54,129.71,129.7,0.05587281]
[1744547925239,30.54,129.71,129.7,7.76807281]
[1744547927441,7.7628449,129.73,129.7,7.76807281]
[1744547928143,7.7628449,129.73,129.7,0.05587281]
[1744547928439,0.0521449,129.73,129.7,0.05587281]
[1744547929748,0.0521449,129.73,129.71,7.7115]
[1744547929946,7.7626449,129.73,129.7,0.05587281]
[1744547931147,7.7626449,129.73,129.7,7.76767281]
[1744547933748,0.0521449,129.73,129.7,7.76767281]
[1744547933946,0.0521449,129.73,129.7,0.05587281]
[1744547934144,30.54,129.77,129.7,0.05587281]
[1744547934550,30.54,129.77,129.75,7.7089]
[1744547935450,30.59424184,129.77,129.75,7.76806791]
[1744547937252,30.59424184,129.77,129.76,7.7086]
[1744547937448,0.05424184,129.77,129.76,7.7086]
[1744547937849,30.54,129.81,129.78,7.7072]
[1744547938350,30.54,129.81,129.79,7.7066]
[1744547938948,30.59104005,129.81,129.8,7.7063]
[1744547939352,30.59104005,129.81,129.79,0.05722666]
[1744547939554,30.59104005,129.81,129.8,7.7063]
[1744547940155,30.59104005,129.81,129.79,7.76372666]
[1744547940455,30.59104005,129.81,129.79,0.05722666]
[1744547941353,30.59104005,129.81,129.79,7.76382666]
[1744547941556,30.59104005,129.81,129.79,0.05722666]
[1744547942159,7.7063,129.8,129.79,0.05722666]
[1744547943462,30.59104005,129.81,129.72,1.9613]
[1744547943752,30.54,129.81,129.71,2.1044]
[1744547943954,30.54,129.81,129.72,7.7106]
[1744547944650,7.709,129.76,129.75,0.05511233]
[1744547945659,7.7103,129.74,129.69,32.4794]
[1744547946156,7.7091,129.76,129.69,30.5]
[1744547946863,0.05608723,129.74,129.71,0.05200254]
[1744547947257,0.05608723,129.74,129.72,7.711]
[1744547947555,0.05608723,129.74,129.71,0.05200254]
[1744547948356,0.05608723,129.74,129.71,7.76320254]
[1744547948559,0.05608723,129.74,129.71,0.05200254]
[1744547949656,30.52,129.73,129.71,0.05200254]
[1744547951653,0.05608723,129.74,129.71,0.05200254]
[1744547952360,0.05608723,129.74,129.72,7.7106]
[1744547952854,0.05608723,129.74,129.73,7.7104]
[1744547953360,110.869606,129.79,129.72,4.1186]
[1744547953756,72.642406,129.79,129.72,4.1186]
[1744547954358,7.706,129.81,129.78,7.7075]
[1744547954860,7.75893241,129.81,129.78,7.75946243]
[1744547956056,0.05293241,129.81,129.78,7.75946243]
[1744547956459,0.05293241,129.81,129.78,0.05196243]
[1744547957159,7.7069,129.79,129.78,0.05196243]
[1744547959364,7.7088,129.76,129.72,6.1453]
[1744547959662,30.5,129.77,129.73,7.7102]
[1744547960055,38.2083,129.77,129.73,7.7102]
[1744547960563,0.05526479,129.76,129.74,7.76188755]
[1744547961563,0.05526479,129.76,129.74,0.05208755]
[1744547962064,7.76426479,129.76,129.74,0.05208755]
[1744547963666,7.7092,129.75,129.74,0.05208755]
[1744547963865,0.05526479,129.76,129.68,34.7219]
[1744547964066,30.5,129.77,129.68,34.7219]
[1744547964365,30.5,129.77,129.65,32.5128]
[1744547964566,2.0415,129.76,129.65,32.5128]
[1744547964865,7.7114,129.72,129.68,7.7131]
[1744547965066,38.29060517,129.72,129.69,0.05294782]
[1744547967071,7.7117,129.71,129.69,0.05294782]
[1744547969370,7.7122,129.7,129.69,0.05294782]
[1744547969570,7.7122,129.7,129.64,4.1657]
[1744547969571,30.57920517,129.72,129.64,4.1657]
[1744547969872,7.7132,129.69,129.64,4.1657]
[1744547970172,7.7132,129.69,129.65,7.7149]
[1744547970573,7.7132,129.69,129.66,0.05650594]
[1744547970873,0.05154233,129.68,129.66,0.05650594]
[1744547972975,7.76504233,129.68,129.66,0.05650594]
[1744547973768,0.05154233,129.68,129.66,0.05650594]
[1744547974068,30.5,129.67,129.5,133.3112]
[1744547974273,610.82,129.69,129.51,30.5]
[1744547974573,38.2138,129.68,129.55,30.5]
[1744547974973,7.714,129.67,129.55,30.5]
[1744547975175,7.714,129.67,129.59,374.77988901]
[1744547975376,0.05365932,129.64,129.62,0.05660024]
[1744547975576,30.55365932,129.64,129.62,0.05660024]
[1744547976178,30.55365932,129.64,129.63,7.7164]
[1744547977671,30.55365932,129.64,129.62,0.05660024]
[1744547977672,30.55365932,129.64,129.62,7.77340024]
[1744547978072,30.55365932,129.64,129.62,0.05660024]
[1744547979177,30.55365932,129.64,129.63,7.7164]
[1744547980677,0.05365932,129.64,129.63,7.7164]
[1744547983882,30.55365932,129.64,129.63,7.7164]
[1744547991492,0.05365932,129.64,129.63,7.7164]
[1744547992496,0.05365932,129.64,129.62,7.77330024]
[1744547992688,0.05365932,129.64,129.62,0.05660024]
[1744547993093,0.05365932,129.64,129.63,7.7164]
[1744548000097,376.44931526,129.78,129.67,7.7136]
[1744548000299,74.697906,129.73,129.6,21.6626]
[1744548000498,74.697906,129.73,129.6,6.2266]
[1744548000693,7.7155,129.65,129.62,7.7165]
[1744548000889,30.5,129.64,129.62,7.7165]
[1744548001098,30.5,129.64,129.57,3.4029149]
[1744548001398,0.04935337,129.62,129.59,0.04951661]
[1744548003200,0.04935337,129.62,129.61,7.7176]
[1744548006003,72.642406,129.72,129.65,7.7149]
[1744548006200,103.122406,129.71,129.65,7.7149]
[1744548006703,7.7139,129.68,129.65,7.7149]
[1744548006905,30.48,129.67,129.65,7.7149]
[1744548007104,30.48,129.67,129.65,7.76378331]
[1744548007306,38.1945,129.67,129.65,0.04888331]
[1744548009307,7.7146,129.66,129.65,0.04888331]
[1744548009505,9.6745,129.66,129.63,7.7161]
[1744548009705,34.5281,129.67,129.57,5.54163722]
[1744548010004,34.5281,129.67,129.57,4.1992]
[1744548010506,7.7146,129.66,129.57,4.1992]
[1744548010703,0.05322414,129.63,129.61,0.05322478]
[1744548011005,30.53322414,129.63,129.61,0.05322478]
[1744548011206,30.53322414,129.63,129.62,7.7167]
[1744548015809,38.24992414,129.63,129.61,0.05322478]
[1744548017108,0.05322414,129.63,129.61,0.05322478]
[1744548018111,30.53322414,129.63,129.62,7.717]
[1744548019522,30.53322414,129.63,129.61,7.77062478]
[1744548019814,30.53322414,129.63,129.61,0.05322478]
[1744548020514,30.53322414,129.63,129.62,7.717]
[1744548022310,30.53322414,129.63,129.61,0.05322478]
[1744548023915,38.25002414,129.63,129.61,0.05322478]
[1744548024614,38.25002414,129.63,129.61,7.77052478]
[1744548025917,38.25002414,129.63,129.61,0.05322478]
[1744548025918,7.717,129.62,129.61,0.05322478]
[1744548026111,1.9576,129.62,129.54,362.2232]
[1744548026312,4.2571,129.61,129.52,3.34382936]
[1744548026614,11.9748,129.61,129.52,3.34382936]
[1744548026912,11.9748,129.61,129.58,7.7191]
[1744548027218,12.0323351,129.61,129.58,7.77262125]
[1744548027713,7.7182,129.6,129.58,7.77262125]
[1744548027914,30.48,129.59,129.58,7.77262125]
[1744548030418,30.48,129.59,129.58,0.05352125]
[1744548030719,4.3146351,129.61,129.58,0.05352125]
[1744548031018,4.3146351,129.61,129.58,7.77242125]
[1744548031019,30.5,129.59,129.58,7.77242125]
[1744548032922,0.0575351,129.61,129.6,7.7182]
[1744548033418,30.5575351,129.61,129.6,7.7182]
[1744548034114,0.0575351,129.61,129.6,7.7182]
[1744548038624,3.51e-05,129.61,129.6,7.7182]
[1744548038819,3.51e-05,129.61,129.6,15.4382]
[1744548040421,3.51e-05,129.61,129.6,373.4382]
[1744548043931,3.51e-05,129.61,129.6,435.4382]
[1744548045330,3.51e-05,129.61,129.6,427.7182]
[1744548048731,3.51e-05,129.61,129.6,365.7182]
[1744548051633,3.51e-05,129.61,129.6,427.7182]
[1744548053732,3.51e-05,129.61,129.6,365.7182]
[1744548056635,3.51e-05,129.61,129.6,427.7182]
[1744548057131,3.51e-05,129.61,129.6,365.7182]
[1744548060140,3.51e-05,129.61,129.6,427.7182]
[1744548060341,3.51e-05,129.61,129.6,7.7182]
[1744548060940,7.7200351,129.61,129.58,0.05352125]
[1744548061137,6.1119,129.6,129.5,45.8879]
[1744548061440,13.8304,129.6,129.5,45.8879]
[1744548062042,13.8304,129.6,129.51,1.34334408]
[1744548062240,0.05623715,129.56,129.54,0.0553001]
[1744548063042,0.05623715,129.56,129.55,7.7211]
[1744548067347,6.1119,129.6,129.59,7.7188]
[1744548067944,30.42,129.64,129.62,7.7169]
[1744548068441,30.471631,129.64,129.62,7.7682564]
[1744548069245,30.471631,129.64,129.63,7.7164]
[1744548069945,30.471631,129.64,129.62,0.0513564]
[1744548070140,4.0961,129.63,129.62,0.0513564]
[1744548070447,4.0961,129.63,129.62,7.7683564]
[1744548071047,0.051631,129.64,129.63,7.7164]
[1744548073349,3.1e-05,129.64,129.63,7.7164]
[1744548088649,3.1e-05,129.64,129.63,38.1364]
[1744548091952,3.1e-05,129.64,129.63,407.7811]
[1744548092154,3.1e-05,129.64,129.63,1018.8011]
[1744548092354,3.1e-05,129.64,129.63,1011.0811]
[1744548103366,3.1e-05,129.64,129.63,1018.8011]
[1744548104169,3.1e-05,129.64,129.63,1011.0811]
[1744548105076,4.0674,129.76,129.75,7.7092]
[1744548105276,30.38,129.79,129.71,30.38]
[1744548105569,6.0287,129.81,129.71,30.38]
[1744548105770,6.0287,129.81,129.71,45.8026]
[1744548106170,0.05299774,129.77,129.75,0.05027047]
[1744548106673,0.05299774,129.77,129.76,7.7086]
[1744548108277,7.75299774,129.77,129.71,388.36]
[1744548108479,4.1121,129.76,129.71,30.36]
[1744548108982,4.1121,129.76,129.73,7.7099]
[1744548109281,4.1121,129.76,129.71,30.36]
[1744548109477,4.1121,129.76,129.75,7.7092]
[1744548109677,11.8121,129.76,129.73,0.05086744]
[1744548109878,4.1121,129.76,129.73,0.05086744]
[1744548110281,4.1121,129.76,129.75,7.7092]
[1744548110579,0.05299774,129.77,129.73,0.05086744]
[1744548110779,0.05299774,129.77,129.76,7.7086]
[1744548113880,9.774e-05,129.77,129.76,7.7086]
[1744548130599,9.774e-05,129.77,129.76,15.4086]
[1744548130798,9.774e-05,129.77,129.76,7.7086]
[1744548132201,9.774e-05,129.77,129.76,38.0486]
[1744548143002,9.774e-05,129.77,129.76,7.7086]
[1744548160013,9.774e-05,129.77,129.76,15.4086]
[1744548160815,9.774e-05,129.77,129.76,7.7086]
[1744548180031,7.70009774,129.77,129.75,7.709]
[1744548180227,9.774e-05,129.77,129.75,7.709]
[1744548180729,9.774e-05,129.77,129.76,7.7086]
[1744548180929,9.774e-05,129.77,129.73,30.35086744]
[1744548181429,9.774e-05,129.77,129.75,7.709]
[1744548182337,9.774e-05,129.77,129.76,7.7086]
[1744548185338,9.774e-05,129.77,129.75,7.7089]
[1744548185538,9.774e-05,129.77,129.73,30.35086744]
[1744548186936,9.774e-05,129.77,129.76,7.7086]
[1744548189443,9.774e-05,129.77,129.73,30.35086744]
[1744548189840,9.774e-05,129.77,129.76,7.7086]
[1744548191242,9.774e-05,129.77,129.75,7.7089]
[1744548191943,9.774e-05,129.77,129.76,7.7086]
[1744548193746,7.70869774,129.77,129.74,7.7095]
[1744548193945,9.774e-05,129.77,129.73,0.05086744]
[1744548194242,7.709,129.76,129.73,7.76096744]
[1744548194742,7.70839774,129.77,129.74,7.7096]
[1744548195048,9.774e-05,129.77,129.73,0.05086744]
[1744548195550,9.774e-05,129.77,129.76,7.7086]
[1744548196448,9.774e-05,129.77,129.75,7.7089]
[1744548196949,9.774e-05,129.77,129.73,0.05086744]
[1744548197150,7.70829774,129.77,129.74,7.7095]
[1744548198152,9.774e-05,129.77,129.73,0.05086744]
[1744548198649,7.7088,129.76,129.73,0.05086744]
[1744548199250,7.7088,129.76,129.73,7.76116744]
[1744548200049,7.7094,129.75,129.73,7.76116744]
[1744548201153,7.7094,129.75,129.73,0.05086744]
[1744548201343,7.7098,129.74,129.73,0.05086744]
[1744548202847,7.7112,129.72,129.69,7.7122]
[1744548203152,2.1058,129.73,129.68,30.28]
[1744548203352,7.7112,129.72,129.68,30.28]
[1744548203652,2.0311,129.72,129.68,30.28]
[1744548204044,0.05476133,129.71,129.69,0.05112323]
[1744548204246,0.05476133,129.71,129.69,7.76362323]
[1744548205149,0.05476133,129.71,129.69,0.05112323]
[1744548206154,7.76666133,129.71,129.69,0.05112323]
[1744548208557,0.05476133,129.71,129.69,0.05112323]
[1744548208960,0.05476133,129.71,129.7,7.7122]
[1744548210461,1.9698,129.75,129.73,7.7099]
[1744548210858,4.0247,129.78,129.69,30.3]
[1744548211058,4.0247,129.78,129.76,7.7083]
[1744548211258,4.0247,129.78,129.69,30.3]
[1744548211760,0.05622549,129.75,129.72,0.05408857]
[1744548212460,0.05622549,129.75,129.74,7.7098]
[1744548219358,72.53103401,129.84,129.79,7.7066]
[1744548219559,74.51003401,129.84,129.74,30.28]
[1744548219866,82.21423401,129.84,129.74,30.28]
[1744548220065,74.51003401,129.84,129.74,30.28]
[1744548220566,0.05479296,129.8,129.79,7.7065]
[1744548220766,7.7048,129.83,129.79,7.7065]
[1744548221064,0.05358698,129.81,129.79,7.7065]
[1744548221665,0.05358698,129.81,129.78,0.05578039]
[1744548223167,0.05358698,129.81,129.8,7.7063]
[1744548229967,0.05358698,129.81,129.78,0.05578039]
[1744548230364,7.7064,129.8,129.78,7.76298039]
[1744548231063,0.05358698,129.81,129.8,7.7063]
[1744548231667,8.698e-05,129.81,129.8,7.7063]
[1744548232167,8.698e-05,129.81,129.8,37.9663]
[1744548236167,8.698e-05,129.81,129.8,7.7063]
[1744548238273,8.698e-05,129.81,129.79,7.7067]
[1744548238571,8.698e-05,129.81,129.78,0.05578039]
[1744548238771,8.698e-05,129.81,129.8,7.7063]
[1744548241470,8.698e-05,129.81,129.78,0.05578039]
[1744548242173,7.70608698,129.81,129.78,7.76288039]
[1744548242574,7.70608698,129.81,129.78,0.05578039]
[1744548242773,7.7066,129.8,129.78,0.05578039]
[1744548244176,7.7069,129.79,129.78,0.05578039]
[1744548244378,30.26,129.8,129.73,30.26]
[1744548244876,30.26,129.8,129.73,7.71]
[1744548245371,7.7084,129.77,129.73,7.71]
[1744548245679,0.05456854,129.78,129.75,0.05572456]
[1744548245877,7.7086,129.76,129.75,0.05572456]
[1744548246067,37.9686,129.76,129.75,0.05572456]
[1744548247477,7.71,129.74,129.71,7.7114]
[1744548247674,30.26,129.76,129.7,30.26]
[1744548247875,30.26,129.76,129.72,7.7105]
[1744548248168,7.7095,129.75,129.72,7.7105]
[1744548248579,7.76076756,129.75,129.72,7.76955198]
[1744548248977,7.7099,129.74,129.72,0.05905198]
[1744548249676,0.05126756,129.75,129.72,0.05905198]
[1744548250477,0.05126756,129.75,129.73,7.71]
[1744548250677,0.05126756,129.75,129.72,0.05905198]
[1744548251079,0.05126756,129.75,129.74,7.7098]
[1744548251379,0.05126756,129.75,129.72,0.05905198]
[1744548252678,0.05126756,129.75,129.74,7.7098]
[1744548258385,30.24,129.83,129.78,7.707]
[1744548258582,30.24,129.83,129.75,30.24]
[1744548259074,30.24,129.83,129.8,7.7059]
[1744548259483,30.2953888,129.83,129.8,7.75923957]
[1744548260485,37.9998888,129.83,129.8,7.75923957]
[1744548260686,30.2953888,129.83,129.8,0.05333957]
[1744548261584,7.7054,129.82,129.8,0.05333957]
[1744548261784,30.2953888,129.83,129.8,0.05333957]
[1744548262785,7.7054,129.82,129.8,0.05333957]
[1744548264288,7.7057,129.81,129.8,0.05333957]
[1744548264488,37.9953888,129.83,129.73,2.1388]
[1744548264693,7.7083,129.77,129.73,2.1388]
[1744548264991,30.24,129.79,129.73,2.1388]
[1744548265288,7.7078,129.78,129.73,2.1388]
[1744548265587,7.7078,129.78,129.75,7.709]
[1744548265789,0.04946951,129.77,129.75,7.709]
[1744548266985,0.04946951,129.77,129.66,30.24]
[1744548267187,2.1587,129.77,129.66,30.24]
[1744548267388,7.7103,129.74,129.69,7.7126]
[1744548267589,30.24,129.75,129.69,7.7126]
[1744548267894,30.24,129.75,129.66,31.58145401]
[1744548268096,0.05692963,129.73,129.71,0.05396908]
[1744548268692,7.76742963,129.73,129.71,0.05396908]
[1744548269199,7.711,129.72,129.71,0.05396908]
[1744548279303,7.7138,129.68,129.66,30.24]
[1744548279506,7.7138,129.68,129.63,30.24]
[1744548279806,30.24,129.71,129.63,30.24]
[1744548279998,30.24,129.71,129.65,7.7149]
[1744548280501,7.7137,129.68,129.67,0.056192]
[1744548280702,0.05474513,129.69,129.67,0.056192]
[1744548281609,7.7134,129.68,129.67,0.056192]
[1744548284205,7.7134,129.68,129.62,2.0748]
[1744548284206,7.7158,129.64,129.62,7.7167]
[1744548284609,30.24,129.68,129.62,7.7167]
[1744548285407,7.716,129.64,129.61,7.7173]
[1744548285802,7.716,129.64,129.61,7.77448786]
[1744548286604,0.05015174,129.66,129.61,0.05718786]
[1744548288611,0.05015174,129.66,129.63,7.716]
[1744548289011,0.05015174,129.66,129.61,0.05718786]
[1744548289212,0.05015174,129.66,129.63,7.716]
[1744548290413,30.29015174,129.66,129.62,7.7169]
[1744548290816,7.7157,129.65,129.61,7.77458786]
[1744548291009,30.29015174,129.66,129.61,0.05718786]
[1744548292014,7.7161,129.64,129.61,0.05718786]
[1744548292215,30.24,129.63,129.61,0.05718786]
[1744548292716,38.01243059,129.63,129.61,0.05718786]
[1744548293211,7.717,129.62,129.61,0.05718786]
[1744548296818,7.719,129.59,129.55,4.0954]
[1744548297115,37.979,129.59,129.55,4.0954]
[1744548297315,37.979,129.59,129.56,7.7201]
[1744548297518,30.26,129.59,129.55,4.0954]
[1744548297915,30.26,129.59,129.57,7.7195]
[1744548298111,0.05699346,129.58,129.57,7.7195]
[1744548299119,0.05699346,129.58,129.56,7.7203]
[1744548299620,7.77639346,129.58,129.55,7.7209]
[1744548299816,0.05699346,129.58,129.54,2.0399]
[1744548300210,0.05699346,129.58,129.5,1.34334408]
[1744548300419,3.9232,129.58,129.5,1.34334408]
[1744548300615,0.05279982,129.55,129.46,36.4653]
[1744548300815,7.723,129.52,129.49,7.7245]
[1744548301117,30.26,129.51,129.49,7.7245]
[1744548301414,37.9835,129.51,129.48,7.7251]
[1744548302019,30.26,129.51,129.48,7.7251]
[1744548302219,30.26,129.51,129.49,7.7246]
[1744548302616,30.26,129.51,129.46,4.0721]
[1744548302822,30.26,129.51,129.46,1.9867]
[1744548303423,30.26,129.51,129.43,2.0955]
[1744548303723,34.3917,129.51,129.43,2.0955]
[1744548303911,0.05044876,129.48,129.44,7.7274]
[1744548304112,30.26,129.47,129.44,7.7274]
[1744548304313,37.986,129.47,129.44,7.7274]
[1744548304518,30.26,129.47,129.44,7.7274]
[1744548304718,30.26,129.47,129.43,2.0955]
[1744548305024,0.05044876,129.48,129.43,2.0955]
[1744548305623,0.05044876,129.48,129.47,7.7259]
[1744548307524,4.0435,129.56,129.43,2.0955]
[1744548307825,30.28,129.55,129.44,30.28]
[1744548308125,7.7224,129.53,129.5,7.7238]
[1744548308425,30.28,129.55,129.46,1.9733]
[1744548308726,7.77578329,129.52,129.49,0.0537745]
[1744548309020,30.26,129.51,129.49,0.0537745]
[1744548309419,32.3706,129.51,129.49,0.0537745]
[1744548309718,7.7241,129.5,129.49,0.0537745]
[1744548309921,32.3706,129.51,129.43,2.0955]
[1744548310320,7.7263,129.47,129.44,7.7274]
[1744548310521,30.26,129.46,129.43,2.0955]
[1744548311024,30.31772268,129.46,129.43,2.0955]
[1744548311625,30.31772268,129.46,129.44,7.7272]
[1744548312124,30.31772268,129.46,129.45,7.7271]
[1744548312827,30.31772268,129.46,129.44,7.7275]
[1744548313128,0.05772268,129.46,129.4,2.1351]
[1744548313327,30.33772268,129.46,129.41,4.1532]
[1744548313723,30.33772268,129.46,129.45,7.7271]
[1744548314027,0.05772268,129.46,129.45,7.7271]
[1744548314223,4.312,129.54,129.42,30.28]
[1744548314520,30.28,129.53,129.42,30.28]
[1744548314732,7.7214,129.55,129.42,30.28]
[1744548314926,611.76,129.56,129.42,30.28]
[1744548315123,30.28,129.55,129.43,15.4565]
[1744548315430,0.04892845,129.5,129.48,0.0553746]
[1744548315726,38.0015,129.55,129.48,0.0553746]
[1744548315927,0.05771978,129.5,129.49,7.7247]
[1744548316129,0.05855839,129.51,129.47,4.1981]
[1744548316428,0.05855839,129.51,129.5,7.7241]
[1744548326234,30.28,129.58,129.54,7.7215]
[1744548326435,30.28,129.58,129.49,30.28]
[1744548326733,7.7208,129.56,129.49,30.28]
[1744548326934,30.28,129.58,129.54,7.7216]
[1744548327334,7.7773381,129.57,129.55,0.05037096]
[1744548328235,0.0570381,129.57,129.47,4.1981]
[1744548328426,30.28,129.58,129.47,4.1981]
[1744548328730,7.7221,129.54,129.51,7.7232]
[1744548328933,30.28,129.53,129.51,7.7232]
[1744548329135,30.28,129.53,129.52,7.7229]
[1744548329628,0.04944385,129.54,129.51,0.05172157]
[1744548329933,0.04944385,129.54,129.53,7.7223]
[1744548333738,34.592,129.59,129.52,2.0727]
[1744548333938,34.592,129.59,129.52,4.0922]
[1744548334137,34.592,129.59,129.58,7.7194]
[1744548335340,42.3109,129.59,129.57,0.05078699]
[1744548335538,34.592,129.59,129.57,0.05078699]
[1744548336940,7.7194,129.58,129.57,0.05078699]
[1744548337139,34.592,129.59,129.57,0.05078699]
[1744548338342,42.3111,129.59,129.57,0.05078699]
[1744548338533,30.28,129.59,129.57,0.05078699]
[1744548339039,30.28,129.59,129.57,7.77048699]
[1744548339543,37.9988,129.59,129.57,0.05078699]
[1744548340542,7.7194,129.58,129.57,0.05078699]
[1744548341246,32.3401,129.59,129.51,30.28]
[1744548341540,2.1442,129.57,129.51,7.7233]
[1744548341842,7.7214,129.55,129.49,2.0518]
[1744548342343,0.05679221,129.53,129.52,7.7226]
[1744548348653,30.26,129.58,129.57,7.7199]
[1744548349045,30.26,129.61,129.52,2.1077]
[1744548349242,37.9781,129.61,129.53,2.1549]
[1744548349447,30.26,129.61,129.57,7.7196]
[1744548349753,7.7183,129.6,129.57,7.7196]
[1744548349953,7.76956936,129.6,129.58,0.05367001]
[1744548350153,0.05126936,129.6,129.58,0.05367001]
[1744548350554,0.05126936,129.6,129.51,30.26]
[1744548350755,30.26,129.61,129.54,7.7214]
[1744548351556,7.7204,129.57,129.54,7.7214]
[1744548351755,37.9804,129.57,129.56,0.05808595]
[1744548352153,30.26,129.57,129.56,0.05808595]
[1744548352657,30.26,129.57,129.56,7.77858595]
[1744548353353,0.05042336,129.59,129.56,0.05808595]
[1744548353659,0.05042336,129.59,129.58,7.7194]
[1744548358862,47.98775246,129.66,129.57,32.3717]
[1744548359358,47.98775246,129.66,129.62,7.7167]
[1744548359561,47.98775246,129.66,129.57,32.3717]
[1744548359859,47.98775246,129.66,129.62,7.717]
[1744548359860,0.05482973,129.63,129.62,7.717]
[1744548361957,0.05482973,129.63,129.61,0.05931481]
[1744548362260,30.26,129.62,129.61,0.05931481]
[1744548362458,37.977,129.62,129.61,0.05931481]
[1744548362657,30.26,129.62,129.61,0.05931481]
[1744548362853,30.31482973,129.63,129.61,0.05931481]
[1744548363059,0.05482973,129.63,129.62,7.717]
[1744548375663,641.72,129.68,129.62,2.1631]
[1744548376467,30.26,129.68,129.62,2.1631]
[1744548376663,0.05895511,129.66,129.64,0.0529376]
[1744548377060,0.05895511,129.66,129.65,7.7152]
[1744548381067,2.012,129.74,129.71,7.7113]
[1744548381275,30.22,129.73,129.64,0.0529376]
[1744548381572,30.22,129.73,129.63,32.2072]
[1744548381869,30.22,129.73,129.72,7.711]
[1744548383269,30.22,129.73,129.71,0.05881617]
[1744548383270,30.22,129.73,129.71,7.77011617]
[1744548383463,30.22,129.73,129.71,0.05881617]
[1744548383669,0.0583711,129.74,129.73,7.7104]
[1744548385968,0.0583711,129.74,129.72,7.7109]
[1744548386168,0.0583711,129.74,129.71,0.05881617]
[1744548386672,7.7686711,129.74,129.71,7.77001617]
[1744548389776,0.0583711,129.74,129.72,7.7109]
[1744548392772,0.0583711,129.74,129.71,7.77011617]
[1744548392978,30.22,129.73,129.71,0.05881617]
[1744548393376,7.712,129.71,129.67,7.7134]
[1744548393874,7.712,129.71,129.68,7.7132]
[1744548394478,7.77135756,129.71,129.68,7.76928355]
[1744548396582,0.05935756,129.71,129.68,0.05608355]
[1744548397882,0.05935756,129.71,129.7,7.7122]
[1744548400177,37.9089,129.76,129.69,2.1487]
[1744548400884,37.9089,129.76,129.73,7.71]
[1744548401383,37.96749115,129.76,129.73,7.76170401]
[1744548404285,37.96749115,129.76,129.74,7.7097]
[1744548406291,37.96749115,129.76,129.73,7.76180401]
[1744548406490,37.96749115,129.76,129.73,0.05170401]
[1744548406790,0.05859115,129.76,129.73,0.05170401]
[1744548408195,7.76729115,129.76,129.74,7.7095]
[1744548408794,7.7094,129.75,129.73,0.05170401]
[1744548409700,7.76749115,129.76,129.73,0.05170401]
[1744548410899,7.7093,129.75,129.73,0.05170401]
[1744548411193,37.8893,129.75,129.73,0.05170401]
[1744548412193,37.8893,129.75,129.73,7.76210401]
[1744548412494,37.8893,129.75,129.73,0.05170401]
[1744548413595,30.18,129.75,129.73,0.05170401]
[1744548414297,30.18,129.75,129.74,7.7098]
[1744548415295,0.05859115,129.76,129.75,7.7092]
[1744548419501,0.05859115,129.76,129.74,7.7095]
[1744548420201,7.76719115,129.76,129.74,7.7095]
[1744548420703,7.7092,129.75,129.73,0.05170401]
[1744548421204,37.8892,129.75,129.73,0.05170401]
[1744548422600,37.8892,129.75,129.73,7.76200401]
[1744548422806,30.18,129.75,129.73,7.76200401]
[1744548425311,37.8894,129.75,129.73,7.76200401]
[1744548425514,37.8894,129.75,129.73,0.05170401]
[1744548426312,37.8894,129.75,129.73,7.76210401]
[1744548427601,30.18,129.75,129.74,7.7098]
[1744548427808,0.05859115,129.76,129.73,0.05170401]
[1744548428513,0.05859115,129.76,129.75,7.7092]
[1744548429512,0.05859115,129.76,129.74,7.7095]
[1744548430917,0.05859115,129.76,129.75,7.7092]
[1744548433017,7.76729115,129.76,129.74,7.7095]
[1744548435112,0.05859115,129.76,129.74,7.7095]
[1744548436614,0.05859115,129.76,129.75,7.7092]
[1744548441423,7.76769115,129.76,129.73,7.76190401]